bitfinex/quotes_SOLUSD_20260304
["timestamp","ask_amount","ask_price","bid_price","bid_amount"]
[1772620259365,4.10160916,90.498,90.449,0.28432314]
[1772620259673,4.10160916,90.498,90.449,4.60652725]
[1772620260664,11.04984585,90.499,90.46,4.32220411]
[1772620261058,0.2,90.5,90.46,4.32220411]
[1772620261261,11.04907244,90.506,90.466,4.32220411]
[1772620261460,4.10160916,90.538,90.484,4.32220411]
[1772620261659,4.10160916,90.538,90.474,3.69383402]
[1772620261962,4.10160916,90.538,90.48,4.32220411]
[1772620262164,11.04496404,90.539,90.469,3.69383402]
[1772620262165,5.02961815,90.52,90.469,3.69383402]
[1772620262465,15.14913561,90.518,90.462,4.32220411]
[1772620262965,4.10160916,90.517,90.462,4.32220411]
[1772620263145,4.10160916,90.509,90.456,0.28432314]
[1772620263345,11.04752645,90.518,90.464,4.60652725]
[1772620263568,5.12961815,90.54,90.48,3.83599559]
[1772620263569,4.10160916,90.535,90.48,3.83599559]
[1772620263754,11.04557403,90.534,90.491,4.32220411]
[1772620263955,4.10160916,90.533,90.491,4.32220411]
[1772620264150,0.1,90.54,90.499,4.32220411]
[1772620264363,11.04496404,90.539,90.501,4.32220411]
[1772620264872,0.1,90.54,90.501,4.32220411]
[1772620265089,4.10160916,90.539,90.495,11.0503313]
[1772620265263,4.10160916,90.539,90.496,0.28432314]
[1772620265876,4.10160916,90.539,90.478,4.82477569]
[1772620266176,4.10160916,90.529,90.481,3.69383402]
[1772620266568,4.10160916,90.519,90.473,4.32220411]
[1772620266768,4.10160916,90.519,90.461,4.32220411]
[1772620266968,4.10160916,90.499,90.435,4.32220411]
[1772620267283,4.10160916,90.499,90.438,4.32220411]
[1772620267487,4.10160916,90.499,90.45,0.28432314]
[1772620268478,4.10160916,90.499,90.449,4.32220411]
[1772620269177,4.10160916,90.497,90.45,11.34015509]
[1772620269682,11.04522245,90.537,90.454,5.10909883]
[1772620269868,11.04522245,90.537,90.476,5.10909883]
[1772620270069,0.1,90.54,90.497,3.69383402]
[1772620270274,11.04496404,90.539,90.498,0.28432314]
[1772620271185,11.04496404,90.539,90.451,1.10557097]
[1772620271186,0.1,90.57,90.503,3.97815716]
[1772620271493,0.2,90.63,90.499,171.27261071]
[1772620271494,1e-08,90.63,90.572,5.10909883]
[1772620271663,1e-08,90.63,90.604,5.10909883]
[1772620271865,1e-08,90.63,90.603,3.69383402]
[1772620271866,1e-08,90.63,90.561,3.69383402]
[1772620272060,1e-08,90.63,90.582,5.10909883]
[1772620272286,11.03393967,90.63,90.586,0.28432314]
[1772620272685,4.5,90.628,90.586,0.28432314]
[1772620272876,1e-08,90.63,90.58,0.28432314]
[1772620273074,4.5,90.619,90.509,1.10486249]
[1772620273272,4.5,90.609,90.536,27.61308157]
[1772620273468,4.5,90.609,90.558,120.52794775]
[1772620273768,4.5,90.609,90.558,109.48539511]
[1772620274166,4.5,90.589,90.558,16.67265167]
[1772620274376,4.5,90.589,90.538,11.04498601]
[1772620275283,4.10160916,90.587,90.544,11.04435412]
[1772620275782,11.03740576,90.601,90.547,4.32220411]
[1772620276170,4.10160916,90.6,90.547,4.32220411]
[1772620276565,4.10160916,90.6,90.556,4.32220411]
[1772620277481,4.10160916,90.658,90.581,3.97815716]
[1772620277778,1.06644464,90.677,90.611,4.32220411]
[1772620277779,4.10160916,90.672,90.611,4.32220411]
[1772620277978,11.03034447,90.659,90.617,4.32220411]
[1772620278570,11.0296135,90.666,90.617,4.32220411]
[1772620278985,11.03034447,90.659,90.617,4.32220411]
[1772620279381,11.02966103,90.665,90.618,11.03533514]
[1772620279688,1.06644464,90.677,90.623,4.63342377]
[1772620280067,11.23023537,90.66,90.623,4.63342377]
[1772620280285,38.80579239,90.66,90.623,4.34910063]
[1772620281187,11.23023537,90.66,90.623,4.34910063]
[1772620281386,38.60067054,90.672,90.617,11.03545692]
[1772620281584,4.21322469,90.671,90.617,11.03545692]
[1772620282491,4.21322469,90.671,90.618,4.39710387]
[1772620283094,38.60067054,90.672,90.62,4.39710387]
[1772620283475,4.38498932,90.671,90.62,4.39710387]
[1772620283978,0.28432314,90.652,90.586,4.39710387]
[1772620284175,4.38498932,90.651,90.589,4.39710387]
[1772620284592,4.38498932,90.651,90.596,4.39710387]
[1772620285179,4.38498932,90.649,90.597,11.03789308]
[1772620285587,4.38498932,90.649,90.598,4.39710387]
[1772620286188,4.38498932,90.631,90.573,11.0408179]
[1772620286387,4.38498932,90.619,90.547,4.39710387]
[1772620286788,4.38498932,90.619,90.555,0.28432314]
[1772620286982,4.38498932,90.619,90.551,5.10909883]
[1772620286983,4.38498932,90.619,90.564,4.39710387]
[1772620287188,91.08144901,90.65,90.575,4.68142701]
[1772620287189,11.03533514,90.618,90.575,4.68142701]
[1772620287376,4.38498932,90.629,90.575,4.68142701]
[1772620287377,11.03460368,90.625,90.575,4.68142701]
[1772620288091,11.31637123,90.645,90.575,4.68142701]
[1772620288293,4.38498932,90.64,90.575,4.68142701]
[1772620288794,0.28432314,90.625,90.557,11.04276864]
[1772620288995,4.38498932,90.622,90.557,11.04276864]
[1772620289189,4.38498932,90.62,90.561,11.04228089]
[1772620289385,11.0282765,90.676,90.577,4.39710387]
[1772620289587,6.79084183,90.704,90.604,4.39710387]
[1772620289773,6.79084183,90.704,90.561,171.15535383]
[1772620289774,8.345652,90.69,90.606,4.39710387]
[1772620290392,0.28432314,90.676,90.606,4.39710387]
[1772620290777,0.28432314,90.674,90.611,4.39710387]
[1772620291396,0.14216157,90.67,90.611,4.39710387]
[1772620291583,4.38498932,90.661,90.611,4.39710387]
[1772620292775,11.03022281,90.66,90.612,11.03606586]
[1772620292995,4.38498932,90.659,90.613,4.39710387]
[1772620293380,11.03022281,90.66,90.613,4.39710387]
[1772620293578,11.02933032,90.668,90.617,4.39710387]
[1772620293980,4.38498932,90.667,90.617,4.39710387]
[1772620295098,4.38498932,90.665,90.619,4.39710387]
[1772620296609,0.28432314,90.65,90.57,11.04118361]
[1772620296902,0.28432314,90.65,90.53,61.7513057]
[1772620296903,0.28432314,90.596,90.542,11.04459808]
[1772620297083,4.38498932,90.589,90.542,11.04459808]
[1772620297802,4.38498932,90.589,90.543,4.39710387]
[1772620298096,4.38498932,90.606,90.546,4.39710387]
[1772620298299,4.66931246,90.639,90.564,4.39710387]
[1772620298491,4.66931246,90.639,90.566,4.39710387]
[1772620299100,4.66931246,90.637,90.567,11.04154935]
[1772620299299,4.66931246,90.637,90.568,4.39710387]
[1772620301303,4.66931246,90.635,90.57,4.39710387]
[1772620302906,4.38498932,90.635,90.57,4.39710387]
[1772620303104,11.03338702,90.634,90.575,0.28432314]
[1772620303302,11.03338702,90.634,90.576,4.39710387]
[1772620303602,4.38498932,90.633,90.576,4.39710387]
[1772620304597,4.38498932,90.631,90.576,4.39710387]
[1772620305195,4.38498932,90.629,90.578,4.39710387]
[1772620305791,4.38498932,90.621,90.578,4.39710387]
[1772620306310,38.61855897,90.63,90.547,4.39710387]
[1772620306311,4.38498932,90.611,90.547,4.39710387]
[1772620307100,11.03630945,90.61,90.555,3.69383402]
[1772620307285,4.38498932,90.609,90.556,4.39710387]
[1772620307484,3.69383402,90.654,90.555,3.69383402]
[1772620307485,4.38498932,90.621,90.561,4.39710387]
[1772620307813,15.42002271,90.621,90.567,4.39710387]
[1772620308606,4.38215647,90.62,90.567,4.39710387]
[1772620310214,11.03521336,90.619,90.572,4.19872242]
[1772620310508,4.38215647,90.618,90.572,4.19872242]
[1772620311812,4.38215647,90.616,90.574,4.19872242]
[1772620312013,11.03545692,90.617,90.574,4.19872242]
[1772620313198,4.38215647,90.616,90.574,4.19872242]
[1772620313399,11.03545692,90.617,90.574,4.19872242]
[1772620314006,4.38215647,90.627,90.576,4.19872242]
[1772620314804,4.38215647,90.641,90.579,4.19872242]
[1772620315098,4.38215647,90.639,90.579,4.19872242]
[1772620315307,0.14216157,90.599,90.549,12.2976902]
[1772620315512,4.52431804,90.589,90.539,9.22466851]
[1772620315715,1.02135946,90.589,90.536,11.04520812]
[1772620315892,1.02135946,90.589,90.523,4.19872242]
[1772620315893,1.02135946,90.589,90.537,9.22466851]
[1772620316093,0.14216157,90.587,90.541,11.04472007]
[1772620316317,0.14216157,90.598,90.543,4.19872242]
[1772620316515,38.63177297,90.599,90.544,4.19872242]
[1772620316715,11.03764942,90.599,90.551,9.22466851]
[1772620316914,11.03764942,90.599,90.552,4.19872242]
[1772620318220,27.59346991,90.602,90.553,38.65139751]
[1772620318423,11.03655306,90.608,90.554,4.19872242]
[1772620318715,4.38215647,90.607,90.554,4.19872242]
[1772620320200,27.59138265,90.608,90.554,4.19872242]
[1772620320413,4.38215647,90.618,90.563,4.19872242]
[1772620322009,0.28432314,90.613,90.555,15.24173495]
[1772620322334,4.38215647,90.604,90.556,4.19872242]
[1772620323223,4.38215647,90.602,90.558,4.19872242]
[1772620323524,4.38215647,90.602,90.557,11.04276864]
[1772620324743,3.69383402,90.626,90.557,11.04276864]
[1772620324744,27.57069125,90.676,90.59,4.19872242]
[1772620325024,5.0102718,90.67,90.59,4.19872242]
[1772620325212,5.0102718,90.66,90.592,4.19872242]
[1772620325924,5.0102718,90.65,90.592,4.19872242]
[1772620326127,82.71845944,90.669,90.562,4.19872242]
[1772620326128,0.28432314,90.619,90.562,4.19872242]
[1772620326809,1.50191981,90.619,90.562,4.19872242]
[1772620327909,11.03192639,90.646,90.578,4.19872242]
[1772620328108,11.03192639,90.646,90.582,4.19872242]
[1772620328317,0.28432314,90.645,90.582,4.19872242]
[1772620328508,38.61174237,90.646,90.585,4.19872242]
[1772620328818,0.28432314,90.645,90.585,4.19872242]
[1772620329131,38.61174237,90.646,90.585,4.19872242]
[1772620329312,0.28432314,90.645,90.585,4.19872242]
[1772620329831,38.61259431,90.644,90.587,4.19872242]
[1772620330036,11.0321698,90.644,90.591,4.19872242]
[1772620330212,1.21759667,90.67,90.602,4.19872242]
[1772620330406,11.0282765,90.676,90.62,9.23557168]
[1772620330610,0.28432314,90.675,90.627,4.19872242]
[1772620330824,11.0282765,90.676,90.627,4.19872242]
[1772620331412,0.28432314,90.675,90.627,4.19872242]
[1772620331629,38.59896775,90.676,90.627,4.19872242]
[1772620331933,27.56676998,90.689,90.63,4.19872242]
[1772620332123,1.21759667,90.684,90.63,4.19872242]
[1772620332509,1.21759667,90.695,90.63,4.19872242]
[1772620332918,11.0282765,90.676,90.63,4.19872242]
[1772620333121,1.21759667,90.695,90.63,4.19872242]
[1772620333421,11.02608772,90.694,90.63,4.19872242]
[1772620333610,11.02608772,90.694,90.631,4.19872242]
[1772620333811,11.02475056,90.705,90.633,4.19872242]
[1772620334011,0.28432314,90.698,90.633,4.19872242]
[1772620334232,38.58662697,90.705,90.633,4.19872242]
[1772620334233,0.28432314,90.696,90.633,4.19872242]
[1772620334410,11.02475056,90.705,90.636,4.48304556]
[1772620334822,0.28432314,90.704,90.636,4.48304556]
[1772620335129,11.02475056,90.705,90.636,4.48304556]
[1772620335335,0.28432314,90.704,90.638,4.48304556]
[1772620335559,1.21759667,90.685,90.623,9.23557168]
[1772620335715,1.21759667,90.685,90.549,44.17492489]
[1772620335716,1.21759667,90.572,90.495,4.19872242]
[1772620335918,1.21759667,90.572,90.494,11.05045638]
[1772620335919,1.49907658,90.552,90.497,4.19872242]
[1772620336115,1.49907658,90.57,90.497,4.19872242]
[1772620336314,38.64371597,90.571,90.496,11.05021216]
[1772620336315,38.64371597,90.571,90.5,4.19872242]
[1772620336527,5.0102718,90.54,90.5,4.19872242]
[1772620336732,6.50934838,90.54,90.472,4.19872242]
[1772620336937,1.49907658,90.539,90.475,4.19872242]
[1772620337138,93.84902451,90.571,90.42,1.10595001]
[1772620337139,5.0102718,90.49,90.441,4.19872242]
[1772620337438,5.0102718,90.49,90.377,44.25903313]
[1772620337439,5.0102718,90.47,90.366,4.19872242]
[1772620337732,5.0102718,90.42,90.365,38.73180987]
[1772620337935,1.10307658,90.439,90.349,4.19872242]
[1772620338434,16.06744312,90.44,90.349,4.19872242]
[1772620338435,1.10307658,90.429,90.349,4.19872242]
[1772620338617,1.10307658,90.429,90.352,4.25680735]
[1772620339431,1.10307658,90.429,90.365,4.54113049]
[1772620339631,1.10307658,90.429,90.365,4.25680735]
[1772620340035,1.10307658,90.429,90.321,44.28610348]
[1772620340036,11.05852169,90.428,90.374,4.54113049]
[1772620340231,11.05852169,90.428,90.374,4.25680735]
[1772620340848,11.05852169,90.428,90.375,0.28432314]
[1772620341427,1.10307658,90.427,90.375,0.28432314]
[1772620342045,1.10307658,90.425,90.377,0.28432314]
[1772620343545,1.10307658,90.425,90.374,4.25680735]
[1772620343546,11.05901088,90.424,90.379,0.28432314]
[1772620343725,8.37329764,90.45,90.384,4.39752213]
[1772620344143,8.37329764,90.45,90.387,4.39752213]
[1772620344332,28.74143419,90.454,90.394,4.39752213]
[1772620344531,11.05424317,90.463,90.406,4.39752213]
[1772620344841,11.05424317,90.463,90.404,0.14216157]
[1772620344842,8.37329764,90.45,90.408,4.11319899]
[1772620345054,8.37329764,90.46,90.408,4.11319899]
[1772620345438,38.68985109,90.463,90.412,4.11319899]
[1772620345742,11.05351004,90.469,90.414,4.11319899]
[1772620345924,38.68728514,90.469,90.414,4.11319899]
[1772620346325,8.37329764,90.45,90.402,0.28432314]
[1772620346545,9.47637422,90.45,90.402,0.28432314]
[1772620347346,1.10307658,90.467,90.413,4.11319899]
[1772620347940,38.68856807,90.466,90.413,4.11319899]
[1772620348132,1.10307658,90.449,90.399,0.28432314]
[1772620348333,1.10307658,90.449,90.399,4.39752213]
[1772620348533,9.47637422,90.46,90.399,4.39752213]
[1772620349236,1.10307658,90.459,90.399,4.39752213]
[1772620349646,38.69198964,90.458,90.402,4.11319899]
[1772620350236,1.10307658,90.457,90.402,4.11319899]
[1772620351145,9.47637422,90.45,90.402,4.11319899]
[1772620351346,1.10307658,90.449,90.375,4.11319899]
[1772620351652,1.10307658,90.437,90.381,0.14216157]
[1772620351842,1.10307658,90.437,90.391,0.28432314]
[1772620352148,11.05729892,90.438,90.392,4.11319899]
[1772620353751,27.64248828,90.441,90.393,4.11319899]
[1772620354450,26.68172759,90.441,90.393,4.11319899]
[1772620355455,8.37329764,90.44,90.393,4.11319899]
[1772620356851,1.10307658,90.441,90.394,15.17588014]
[1772620357250,8.37329764,90.44,90.394,15.17588014]
[1772620357457,8.37329764,90.43,90.389,0.28432314]
[1772620357650,1.10307658,90.437,90.389,0.28432314]
[1772620357856,1.10307658,90.437,90.383,4.11319899]
[1772620358035,8.37329764,90.43,90.383,4.11319899]
[1772620358237,38.70054622,90.438,90.383,4.11319899]
[1772620358238,8.37329764,90.42,90.383,4.11319899]
[1772620358455,1.10307658,90.429,90.383,4.11319899]
[1772620359154,38.70054622,90.438,90.388,0.28432314]
[1772620359351,55.27257597,90.461,90.384,4.82477569]
[1772620359352,8.37329764,90.45,90.394,11.06268115]
[1772620359554,38.68771277,90.468,90.398,4.11319899]
[1772620359746,38.68771277,90.468,90.405,4.39752213]
[1772620359955,1.10307658,90.467,90.405,4.39752213]
[1772620361449,1.10307658,90.449,90.405,4.11319899]
[1772620361841,5.02976794,90.44,90.399,0.28432314]
[1772620362041,1.10307658,90.449,90.399,0.28432314]
[1772620362241,1.10307658,90.449,90.394,4.11319899]
[1772620362448,1.10307658,90.449,90.394,15.17580791]
[1772620362753,1.10307658,90.449,90.395,4.11319899]
[1772620363866,38.69626745,90.448,90.397,4.11319899]
[1772620364164,1.10307658,90.447,90.397,4.11319899]
[1772620366159,38.69712313,90.446,90.397,4.11319899]
[1772620366954,38.69712313,90.446,90.403,4.11319899]
[1772620367263,11.05473197,90.459,90.413,4.11319899]
[1772620367569,38.69156191,90.459,90.413,4.11319899]
[1772620368163,27.63682994,90.459,90.415,4.11319899]
[1772620370345,27.63682994,90.459,90.417,4.37329462]
[1772620371253,11.05363222,90.468,90.423,4.37329462]
[1772620371556,38.68771277,90.468,90.423,4.37329462]
[1772620371753,1.10307658,90.467,90.408,0.28432314]
[1772620372071,1.10307658,90.459,90.408,4.65761776]
[1772620372457,38.69198964,90.458,90.41,4.65761776]
[1772620373164,11.05485418,90.458,90.414,4.65761776]
[1772620374267,11.05485418,90.458,90.372,1.10653742]
[1772620374268,4.16840286,90.439,90.345,8.51860971]
[1772620374465,4.16840286,90.437,90.347,4.82477569]
[1772620375068,4.16840286,90.437,90.351,0.28432314]
[1772620375263,4.16840286,90.437,90.371,5.10909883]
[1772620375566,4.16840286,90.429,90.35,55.34031421]
[1772620375768,4.16840286,90.429,90.351,4.82477569]
[1772620376277,4.16840286,90.419,90.354,4.37329462]
[1772620376472,4.16840286,90.419,90.347,4.82477569]
[1772620376473,15.2281476,90.418,90.365,4.65761776]
[1772620376773,11.05974474,90.418,90.374,4.37329462]
[1772620376953,11.05974474,90.418,90.382,4.37329462]
[1772620378375,27.64585908,90.43,90.392,4.37329462]
[1772620378555,27.64585908,90.43,90.393,4.37329462]
[1772620378966,11.05729892,90.438,90.393,4.37329462]
[1772620379165,38.70054622,90.438,90.393,4.37329462]
[1772620379471,4.16840286,90.429,90.393,4.37329462]
[1772620379675,4.16840286,90.429,90.378,4.65761776]
[1772620379873,4.16840286,90.419,90.378,4.37329462]
[1772620381174,45.5002907,90.418,90.378,15.43788195]
[1772620381365,6.79118411,90.417,90.378,15.43788195]
[1772620381562,10.96017167,90.416,90.378,15.43788195]
[1772620381769,6.79176881,90.415,90.379,4.37329462]
[1772620381967,4.16840286,90.416,90.379,4.37329462]
[1772620382271,10.95911491,90.415,90.379,4.37329462]
[1772620382476,4.16840286,90.409,90.361,0.28432314]
[1772620382686,4.16840286,90.407,90.362,4.37329462]
[1772620383256,4.16840286,90.405,90.364,4.37329462]
[1772620384362,4.16840286,90.399,90.356,11.06732108]
[1772620384577,4.16840286,90.397,90.356,15.4406157]
[1772620384781,4.16840286,90.395,90.356,4.37329462]
[1772620384959,38.71424462,90.406,90.315,56.33430123]
[1772620384960,4.16840286,90.389,90.346,11.06855865]
[1772620385160,11.06219164,90.398,90.351,4.37329462]
[1772620385459,6.79901232,90.397,90.363,4.37329462]
[1772620385673,11.06096805,90.408,90.364,5.10909883]
[1772620385865,11.06096805,90.408,90.373,4.37329462]
[1772620387177,38.71338818,90.408,90.373,4.37329462]
[1772620387385,42.88179104,90.408,90.373,4.37329462]
[1772620388376,4.16840286,90.407,90.373,4.37329462]
[1772620388564,4.16840286,90.406,90.373,4.37329462]
[1772620389375,11.0613351,90.405,90.373,4.37329462]
[1772620390163,42.88307571,90.405,90.373,4.37329462]
[1772620390865,4.16840286,90.389,90.346,4.37329462]
[1772620391063,4.16840286,90.379,90.317,43.57698164]
[1772620391275,4.16840286,90.367,90.317,11.07211266]
[1772620391585,38.73052407,90.368,90.315,0.97292808]
[1772620391586,4.16840286,90.349,90.315,0.97292808]
[1772620391878,4.16840286,90.349,90.282,27.69077835]
[1772620392085,4.16840286,90.329,90.277,11.0769843]
[1772620392265,2e-08,90.319,90.283,4.37329462]
[1772620392469,5.0348594,90.33,90.291,11.07530097]
[1772620392669,5.0348594,90.33,90.29,4.57329462]
[1772620393565,11.07064176,90.329,90.29,4.57329462]
[1772620393765,38.74724617,90.329,90.29,4.57329462]
[1772620393983,38.74724617,90.329,90.292,4.37329462]
[1772620394881,11.07064176,90.329,90.292,4.37329462]
[1772620396169,11.0694163,90.339,90.294,4.37329462]
[1772620397057,31.83788172,90.353,90.302,4.37329462]
[1772620397371,11.06819112,90.349,90.302,4.37329462]
[1772620397688,15.23659398,90.349,90.302,4.37329462]
[1772620397879,4.16840286,90.348,90.302,4.37329462]
[1772620398080,4.16840286,90.339,90.292,4.37329462]
[1772620398278,5.0348594,90.34,90.292,4.37329462]
[1772620398279,4.23495408,90.337,90.293,4.37329462]
[1772620399290,4.23495408,90.319,90.29,0.2]
[1772620400378,11.07199007,90.318,90.29,0.2]
[1772620401185,11.07199007,90.318,90.291,4.3844871]
[1772620402489,11.07199007,90.318,90.29,0.2]
[1772620403193,4.23685561,90.317,90.29,0.2]
[1772620403574,11.07199007,90.318,90.261,4.36208155]
[1772620403575,4.23685561,90.309,90.261,4.36208155]
[1772620403766,11.07199007,90.318,90.257,11.07935273]
[1772620403767,4.23685561,90.289,90.257,11.07935273]
[1772620403971,4.23685561,90.289,90.252,11.08008038]
[1772620404288,4.23685561,90.289,90.25,11.28028621]
[1772620404674,15.31252458,90.288,90.25,11.28028621]
[1772620405080,4.23685561,90.287,90.25,11.28028621]
[1772620405582,4.23685561,90.279,90.25,0.2]
[1772620405973,4.23685561,90.279,90.25,1e-08]
[1772620406175,5.0348594,90.27,90.25,1e-08]
[1772620406488,4.23685561,90.269,90.25,1e-08]
[1772620406790,3.69383402,90.311,90.203,4.36208155]
[1772620406791,4.23685561,90.256,90.203,4.36208155]
[1772620406991,4.23685561,90.239,90.203,15.44815559]
[1772620407175,5.0348594,90.25,90.204,4.36208155]
[1772620407685,4.23685561,90.249,90.204,4.36208155]
[1772620408074,4.23685561,90.229,90.191,4.36208155]
[1772620408278,4.23685561,90.229,90.192,11.08745786]
[1772620408475,4.23685561,90.229,90.185,11.08825204]
[1772620408875,4.23685561,90.243,90.192,4.36208155]
[1772620409087,38.78460139,90.242,90.192,4.36208155]
[1772620409293,4.23685561,90.229,90.18,4.36208155]
[1772620409497,4.23685561,90.229,90.181,0.28432314]
[1772620409697,4.23685561,90.229,90.18,4.36208155]
[1772620409875,4.23685561,90.219,90.18,4.36208155]
[1772620410296,5.0348594,90.23,90.18,4.36208155]
[1772620410505,4.23685561,90.239,90.18,4.36208155]
[1772620410799,11.08131468,90.242,90.203,4.36208155]
[1772620411110,5.0348594,90.25,90.205,4.36208155]
[1772620411391,4.23685561,90.249,90.205,4.36208155]
[1772620411989,4.23685561,90.249,90.188,3.69383402]
[1772620411990,4.23685561,90.219,90.179,4.36208155]
[1772620412196,9.27171501,90.21,90.178,0.275762]
[1772620413173,9.27171501,90.21,90.137,55.47084833]
[1772620413174,4.23685561,90.199,90.151,4.36208155]
[1772620413490,4.23685561,90.179,90.141,4.36208155]
[1772620414915,4.23685561,90.179,90.147,11.09297192]
[1772620415124,4.23685561,90.179,90.141,4.36208155]
[1772620415321,11.08917917,90.178,90.141,4.36208155]
[1772620415637,11.08917917,90.178,90.144,11.0933556]
[1772620415928,11.08917917,90.178,90.148,11.09278142]
[1772620416526,11.08917917,90.178,90.143,11.09344598]
[1772620416908,11.08917917,90.178,90.141,4.36208155]
[1772620417728,27.71519002,90.204,90.152,4.36208155]
[1772620417915,55.41440884,90.23,90.162,4.36208155]
[1772620417916,4.23685561,90.208,90.162,4.36208155]
[1772620420243,4.23685561,90.208,90.164,4.36208155]
[1772620420244,11.08561419,90.207,90.164,4.36208155]
[1772620420752,4.23685561,90.199,90.153,4.36208155]
[1772620421649,11.08561419,90.207,90.161,4.36208155]
[1772620421882,11.08561419,90.207,90.163,4.36208155]
[1772620422737,4.23685561,90.214,90.165,4.36208155]
[1772620422738,11.0848769,90.213,90.165,4.36208155]
[1772620423055,11.0848769,90.213,90.164,38.81815358]
[1772620423056,11.0848769,90.213,90.173,4.36208155]
[1772620424027,4.23685561,90.199,90.153,4.36208155]
[1772620424226,4.23685561,90.199,90.154,4.36208155]
[1772620424660,4.23685561,90.209,90.154,4.36208155]
[1772620424848,11.0854913,90.208,90.162,4.36208155]
[1772620425050,15.32234691,90.208,90.162,4.36208155]
[1772620425439,4.23685561,90.207,90.162,4.36208155]
[1772620426054,38.79921957,90.208,90.162,4.36208155]
[1772620426055,11.0854913,90.208,90.162,4.36208155]
[1772620426235,15.32234691,90.208,90.162,4.36208155]
[1772620427252,11.0854913,90.208,90.164,4.36208155]
[1772620428531,43.1443001,90.208,90.164,4.36208155]
[1772620428928,15.43057183,90.208,90.164,4.36208155]
[1772620429134,11.0854913,90.208,90.166,4.45776177]
[1772620429537,38.79921957,90.208,90.166,4.45776177]
[1772620429858,43.1443001,90.208,90.166,4.45776177]
[1772620430853,4.34508053,90.205,90.168,4.45776177]
[1772620431052,11.08573709,90.206,90.168,4.45776177]
[1772620431262,4.34508053,90.214,90.167,11.09053201]
[1772620431263,11.08518465,90.211,90.172,4.45776177]
[1772620431765,4.34508053,90.239,90.182,4.45776177]
[1772620432242,4.34508053,90.239,90.173,0.28432314]
[1772620432243,4.34508053,90.219,90.173,4.45776177]
[1772620432445,4.34508053,90.238,90.175,4.45776177]
[1772620432633,4.34508053,90.219,90.178,4.45776177]
[1772620432834,5.0348594,90.22,90.167,38.81686204]
[1772620432835,15.42934309,90.218,90.18,4.45776177]
[1772620433034,4.34508053,90.217,90.18,4.45776177]
[1772620433667,11.08426256,90.218,90.17,15.54789081]
[1772620433668,4.34508053,90.209,90.17,15.54789081]
[1772620434043,38.79491897,90.218,90.15,4.65776177]
[1772620434044,4.34508053,90.189,90.15,4.65776177]
[1772620434346,4.34508053,90.202,90.156,5.10909883]
[1772620434545,4.34508053,90.202,90.163,4.45776177]
[1772620434747,5.0348594,90.2,90.163,4.45776177]
[1772620434942,38.80309094,90.199,90.163,4.45776177]
[1772620435148,4.34508053,90.198,90.153,4.45776177]
[1772620435452,4.34508053,90.198,90.15,0.2]
[1772620435453,4.34508053,90.198,90.155,4.45776177]
[1772620437143,38.80395134,90.197,90.156,11.09188517]
[1772620437464,38.80395134,90.197,90.15,0.2]
[1772620437465,5.05964337,90.19,90.157,4.45776177]
[1772620437763,4.34508053,90.179,90.15,0.2]
[1772620439341,11.08917917,90.178,90.152,4.45776177]
[1772620439570,11.08853678,90.184,90.152,4.45776177]
[1772620440148,11.08684324,90.197,90.152,4.45776177]
[1772620440870,11.08631985,90.202,90.162,4.45776177]
[1772620441048,55.40967646,90.237,90.151,38.82375126]
[1772620441049,27.71044618,90.219,90.172,4.45776177]
[1772620441359,27.70418698,90.24,90.194,11.087212]
[1772620441565,27.70418698,90.24,90.195,4.45776177]
[1772620442067,4.34508053,90.244,90.194,38.80524202]
[1772620442068,4.34508053,90.26,90.213,4.45776177]
[1772620442365,4.34508053,90.258,90.213,4.45776177]
[1772620444052,4.34508053,90.249,90.196,4.45776177]
[1772620446144,4.34508053,90.247,90.198,4.45776177]
[1772620446449,5.05964337,90.23,90.155,4.45776177]
[1772620446764,4.34508053,90.189,90.151,11.09249783]
[1772620446964,5.05964337,90.18,90.151,11.09249783]
[1772620447147,5.05964337,90.18,90.146,11.09309381]
[1772620447462,4.34508053,90.189,90.15,11.29259883]
[1772620447653,5.05964337,90.18,90.15,11.29259883]
[1772620447862,5.05964337,90.18,90.15,0.2]
[1772620448062,5.05964337,90.18,90.15,11.29260155]
[1772620448253,4.34508053,90.187,90.15,11.29260155]
[1772620449075,11.08699192,90.196,90.153,4.45776177]
[1772620450267,11.08699192,90.196,90.152,0.14216157]
[1772620450268,11.08699192,90.196,90.155,4.45776177]
[1772620450676,11.08536842,90.209,90.163,4.45776177]
[1772620451891,38.79878947,90.209,90.163,4.45776177]
[1772620452253,38.79878947,90.209,90.156,4.82477569]
[1772620452254,38.79878947,90.209,90.165,4.45776177]
[1772620453050,4.34508053,90.208,90.165,4.45776177]
[1772620453475,38.79878947,90.209,90.156,4.82477569]
[1772620453476,15.43069472,90.207,90.167,4.45776177]
[1772620454964,4.34508053,90.206,90.167,4.45776177]
[1772620455875,11.08585998,90.205,90.169,4.45776177]
[1772620456458,4.34508053,90.204,90.168,11.09040901]
[1772620456956,4.34508053,90.204,90.169,4.45776177]
[1772620457480,4.34508053,90.204,90.15,0.2]
[1772620457481,4.34508053,90.189,90.152,11.09225581]
[1772620457774,4.34508053,90.179,90.15,0.2]
[1772620457962,4.34508053,90.169,90.15,0.2]
[1772620458757,4.42923128,90.159,90.127,11.09538549]